[Event "Early-Titled-Tuesday-Blitz-August-29-2023"]
[Site "Chess.com"]
[Date "2023.08.29"]
[Round "2"]
[White "M1711"]
[Black "ShiroglanTalibov"]
[Result "0-1"]
[WhiteElo "2534"]
[BlackElo "2814"]
[TimeControl "180+1"]
[EndTime "8:18:19 PDT"]
[Termination "ShiroglanTalibov won on time"]

1. e4 {[%clk 0:03:00.9]} 1... c5 {[%clk 0:02:58.2]} 2. Nf3 {[%clk 0:03:00.8]}
2... Nc6 {[%clk 0:02:56.6]} 3. Bb5 {[%clk 0:03:00]} 3... d6 {[%clk 0:02:54]} 4.
O-O {[%clk 0:02:57.8]} 4... Bd7 {[%clk 0:02:52.4]} 5. c3 {[%clk 0:02:56.5]} 5...
Nf6 {[%clk 0:02:44.8]} 6. Re1 {[%clk 0:02:56]} 6... a6 {[%clk 0:02:43.4]} 7. Bc4
{[%clk 0:02:38.2]} 7... b5 {[%clk 0:02:42.2]} 8. Bf1 {[%clk 0:02:36.1]} 8... e5
{[%clk 0:02:41.2]} 9. d4 {[%clk 0:02:34.3]} 9... Be7 {[%clk 0:02:34.5]} 10. a4
{[%clk 0:02:29.7]} 10... Rb8 {[%clk 0:02:31.2]} 11. d5 {[%clk 0:02:10.3]} 11...
Na5 {[%clk 0:02:30.3]} 12. axb5 {[%clk 0:02:00.1]} 12... axb5 {[%clk 0:02:31.2]}
13. Na3 {[%clk 0:01:46]} 13... O-O {[%clk 0:02:26]} 14. Nxe5 {[%clk 0:01:42.7]}
14... dxe5 {[%clk 0:02:15.1]} 15. d6 {[%clk 0:01:42.3]} 15... b4 {[%clk
0:02:12.6]} 16. dxe7 {[%clk 0:01:40.7]} 16... Qxe7 {[%clk 0:02:11.3]} 17. Nc4
{[%clk 0:01:41.2]} 17... Nxc4 {[%clk 0:02:09.7]} 18. Bxc4 {[%clk 0:01:41.4]}
18... Be6 {[%clk 0:02:06.1]} 19. Qe2 {[%clk 0:01:27.9]} 19... h6 {[%clk
0:02:00.9]} 20. f3 {[%clk 0:01:25.9]} 20... Nh5 {[%clk 0:01:41.3]} 21. Be3
{[%clk 0:01:23.3]} 21... Nf4 {[%clk 0:01:39]} 22. Bxf4 {[%clk 0:01:21.8]} 22...
exf4 {[%clk 0:01:39.9]} 23. Red1 {[%clk 0:01:15]} 23... bxc3 {[%clk 0:01:38]}
24. bxc3 {[%clk 0:01:13.7]} 24... Rfd8 {[%clk 0:01:37.7]} 25. Bxe6 {[%clk
0:00:51.8]} 25... Qxe6 {[%clk 0:01:36.7]} 26. Rd2 {[%clk 0:00:49.3]} 26... Qe5
{[%clk 0:01:03.9]} 27. Rad1 {[%clk 0:00:46.1]} 27... Rxd2 {[%clk 0:01:02.3]} 28.
Qxd2 {[%clk 0:00:45]} 28... Rb3 {[%clk 0:01:02.3]} 29. Qd8+ {[%clk 0:00:39.6]}
29... Kh7 {[%clk 0:01:01.9]} 30. Qd7 {[%clk 0:00:25]} 30... Qf6 {[%clk
0:00:34.8]} 31. e5 {[%clk 0:00:15.1]} 31... Qxe5 {[%clk 0:00:20.4]} 32. Qxf7
{[%clk 0:00:15.3]} 32... Rxc3 {[%clk 0:00:20.1]} 33. h4 {[%clk 0:00:06.8]} 33...
Re3 {[%clk 0:00:13.8]} 34. h5 {[%clk 0:00:03.6]} 34... Qg5 {[%clk 0:00:04]} 35.
Rf1 {[%clk 0:00:01.5]} 35... Re2 {[%clk 0:00:04]} 36. Rf2 {[%clk 0:00:02.1]}
36... Re1+ {[%clk 0:00:04.6]} 37. Rf1 {[%clk 0:00:02.4]} 37... Re5 {[%clk
0:00:05.1]} 38. Rc1 {[%clk 0:00:01.4]} 38... Qg3 {[%clk 0:00:03]} 0-1

[Event "Early-Titled-Tuesday-Blitz-August-29-2023"]
[Site "Chess.com"]
[Date "2023.08.29"]
[Round "2"]
[White "LeoLV10"]
[Black "DarZay"]
[Result "1/2-1/2"]
[WhiteElo "2482"]
[BlackElo "2273"]
[TimeControl "180+1"]
[EndTime "8:18:21 PDT"]
[Termination "Game drawn by agreement"]

1. e4 {[%clk 0:03:00.9]} 1... c5 {[%clk 0:02:55.2]} 2. Nf3 {[%clk 0:03:00.6]}
2... Nc6 {[%clk 0:02:54.9]} 3. d4 {[%clk 0:03:01.3]} 3... cxd4 {[%clk
0:02:54.7]} 4. Nxd4 {[%clk 0:03:02.2]} 4... Nf6 {[%clk 0:02:54.7]} 5. Nc3 {[%clk
0:03:02.8]} 5... d6 {[%clk 0:02:55.2]} 6. Ndb5 {[%clk 0:03:03.6]} 6... a6 {[%clk
0:02:49.9]} 7. Nd4 {[%clk 0:03:03.2]} 7... e5 {[%clk 0:02:46.2]} 8. Nb3 {[%clk
0:03:03]} 8... Be6 {[%clk 0:02:43.6]} 9. Be2 {[%clk 0:03:02.1]} 9... d5 {[%clk
0:02:43.4]} 10. exd5 {[%clk 0:03:01.1]} 10... Nxd5 {[%clk 0:02:43.5]} 11. Nxd5
{[%clk 0:03:01.6]} 11... Bxd5 {[%clk 0:02:43.9]} 12. O-O {[%clk 0:03:02.4]}
12... Be7 {[%clk 0:02:41.5]} 13. Be3 {[%clk 0:03:00.6]} 13... O-O {[%clk
0:02:40.2]} 14. c4 {[%clk 0:03:00.5]} 14... Be6 {[%clk 0:02:39.2]} 15. Nc5
{[%clk 0:02:58]} 15... Nd4 {[%clk 0:02:27.5]} 16. Bxd4 {[%clk 0:02:54.7]} 16...
Qxd4 {[%clk 0:02:16.8]} 17. Nxe6 {[%clk 0:02:52.5]} 17... fxe6 {[%clk
0:02:12.8]} 18. Qc2 {[%clk 0:02:37.1]} 18... Bc5 {[%clk 0:01:44.6]} 19. Bf3
{[%clk 0:02:34.9]} 19... Rf4 {[%clk 0:01:39.3]} 20. Rad1 {[%clk 0:00:42.5]}
20... Qxc4 {[%clk 0:01:37.9]} 21. Qxc4 {[%clk 0:00:30.3]} 21... Rxc4 {[%clk
0:01:38]} 22. Bxb7 {[%clk 0:00:24.9]} 22... Rb8 {[%clk 0:01:26.3]} 23. Bxa6
{[%clk 0:00:24.6]} 23... Rc2 {[%clk 0:01:26.6]} 24. b3 {[%clk 0:00:23.4]} 24...
Rf8 {[%clk 0:01:22.1]} 25. a4 {[%clk 0:00:22]} 25... Bxf2+ {[%clk 0:01:15.7]}
26. Kh1 {[%clk 0:00:21.9]} 26... e4 {[%clk 0:01:16.3]} 27. Bc4 {[%clk
0:00:21.3]} 27... Rxc4 {[%clk 0:01:01.8]} 28. Rxf2 {[%clk 0:00:18.8]} 28... Rxf2
{[%clk 0:00:57.1]} 29. bxc4 {[%clk 0:00:19.2]} 29... e3 {[%clk 0:00:57]} 30. Re1
{[%clk 0:00:18.4]} 30... Rc2 {[%clk 0:00:52]} 31. Kg1 {[%clk 0:00:15.8]} 31...
Rxc4 {[%clk 0:00:50.4]} 32. Rxe3 {[%clk 0:00:16.1]} 32... Rxa4 {[%clk
0:00:50.4]} 33. Rxe6 {[%clk 0:00:16.7]} 33... Rf4 {[%clk 0:00:45.8]} 34. h3
{[%clk 0:00:16.3]} 34... Kf7 {[%clk 0:00:45.3]} 35. Re3 {[%clk 0:00:16.9]} 35...
Rc4 {[%clk 0:00:45]} 36. Kh2 {[%clk 0:00:17.5]} 36... Kg6 {[%clk 0:00:45.1]} 37.
h4 {[%clk 0:00:18]} 37... Rxh4+ {[%clk 0:00:44.9]} 38. Kg3 {[%clk 0:00:18.4]}
38... Rc4 {[%clk 0:00:45.1]} 39. Re6+ {[%clk 0:00:18.6]} 39... Kf7 {[%clk
0:00:45.1]} 40. Re3 {[%clk 0:00:19.5]} 40... Kf6 {[%clk 0:00:45.5]} 41. Rf3+
{[%clk 0:00:20]} 41... Kg5 {[%clk 0:00:46]} 42. Ra3 {[%clk 0:00:20.5]} 42... h5
{[%clk 0:00:44.6]} 43. Ra5+ {[%clk 0:00:20.2]} 43... Kg6 {[%clk 0:00:44.9]} 44.
Kh3 {[%clk 0:00:20.7]} 44... Rg4 {[%clk 0:00:42.7]} 45. g3 {[%clk 0:00:21.3]}
45... Kh6 {[%clk 0:00:41.9]} 46. Ra6+ {[%clk 0:00:20.9]} 46... Rg6 {[%clk
0:00:41.3]} 47. Ra5 {[%clk 0:00:20.9]} 47... Rd6 {[%clk 0:00:40.6]} 48. Re5
{[%clk 0:00:20.2]} 48... Rd3 {[%clk 0:00:39.9]} 49. Kh4 {[%clk 0:00:18.9]} 49...
Rd4+ {[%clk 0:00:27.5]} 50. Kh3 {[%clk 0:00:18.9]} 50... g5 {[%clk 0:00:27.3]}
51. Re6+ {[%clk 0:00:19.3]} 51... Kg7 {[%clk 0:00:27.5]} 52. Re7+ {[%clk
0:00:19.8]} 52... Kf6 {[%clk 0:00:27.3]} 53. Rh7 {[%clk 0:00:19.9]} 53... Kg6
{[%clk 0:00:27.6]} 54. Ra7 {[%clk 0:00:19.1]} 1/2-1/2

[Event "Early-Titled-Tuesday-Blitz-August-29-2023"]
[Site "Chess.com"]
[Date "2023.08.29"]
[Round "2"]
[White "Flaccidmoves"]
[Black "Larina_Maria"]
[Result "1-0"]
[WhiteElo "2476"]
[BlackElo "2221"]
[TimeControl "180+1"]
[EndTime "8:18:22 PDT"]
[Termination "Flaccidmoves won on time"]

1. c4 {[%clk 0:03:00.9]} 1... e5 {[%clk 0:02:59.1]} 2. Nc3 {[%clk 0:03:01.2]}
2... f5 {[%clk 0:02:57.3]} 3. g3 {[%clk 0:02:39.3]} 3... Nf6 {[%clk 0:02:58.2]}
4. Bg2 {[%clk 0:02:39]} 4... Nc6 {[%clk 0:02:56]} 5. d3 {[%clk 0:02:29]} 5...
Be7 {[%clk 0:02:55.7]} 6. Nf3 {[%clk 0:02:27.3]} 6... O-O {[%clk 0:02:54.3]} 7.
O-O {[%clk 0:02:27.9]} 7... d6 {[%clk 0:02:54.3]} 8. Rb1 {[%clk 0:02:13.3]} 8...
Qe8 {[%clk 0:02:39.2]} 9. b4 {[%clk 0:01:53.4]} 9... Bd8 {[%clk 0:02:13.6]} 10.
b5 {[%clk 0:01:40.2]} 10... Ne7 {[%clk 0:02:13.6]} 11. Qb3 {[%clk 0:01:21.4]}
11... Kh8 {[%clk 0:02:07.6]} 12. c5 {[%clk 0:01:14.2]} 12... Qh5 {[%clk
0:01:47]} 13. Ba3 {[%clk 0:00:55.9]} 13... e4 {[%clk 0:01:36.7]} 14. Nd4 {[%clk
0:00:42.1]} 14... d5 {[%clk 0:00:52.9]} 15. c6 {[%clk 0:00:39.7]} 15... b6
{[%clk 0:00:49.9]} 16. Bxe7 {[%clk 0:00:30.2]} 16... Bxe7 {[%clk 0:00:50.8]} 17.
Nxd5 {[%clk 0:00:17.1]} 17... Nxd5 {[%clk 0:00:50.2]} 18. Qxd5 {[%clk 0:00:18]}
18... Rd8 {[%clk 0:00:46.6]} 19. Qc4 {[%clk 0:00:18.5]} 19... Bf6 {[%clk
0:00:34.8]} 20. Ne6 {[%clk 0:00:17.2]} 20... Bxe6 {[%clk 0:00:27.7]} 21. Qxe6
{[%clk 0:00:18.1]} 21... exd3 {[%clk 0:00:25.7]} 22. exd3 {[%clk 0:00:19]} 22...
Rxd3 {[%clk 0:00:23.7]} 23. Rfe1 {[%clk 0:00:18.8]} 23... Rdd8 {[%clk
0:00:20.3]} 24. Rb3 {[%clk 0:00:15.8]} 24... Re8 {[%clk 0:00:19.5]} 25. Rbe3
{[%clk 0:00:13.4]} 25... Rxe6 {[%clk 0:00:19.1]} 26. Rxe6 {[%clk 0:00:14.3]}
26... Rf8 {[%clk 0:00:19.1]} 27. f4 {[%clk 0:00:13.1]} 27... Qf7 {[%clk
0:00:18.6]} 28. Bd5 {[%clk 0:00:13.1]} 28... Qg6 {[%clk 0:00:15.6]} 29. Kg2
{[%clk 0:00:11.9]} 29... h5 {[%clk 0:00:15.2]} 30. Kf3 {[%clk 0:00:10.3]} 30...
Qg4+ {[%clk 0:00:14.6]} 31. Kg2 {[%clk 0:00:10.3]} 31... h4 {[%clk 0:00:14.5]}
32. Bf3 {[%clk 0:00:10.8]} 32... Qg6 {[%clk 0:00:13.5]} 33. Bd5 {[%clk
0:00:09.6]} 33... Qh5 {[%clk 0:00:09.1]} 34. Bf3 {[%clk 0:00:09.2]} 34... h3+
{[%clk 0:00:09.1]} 35. Kf2 {[%clk 0:00:09]} 35... Qg6 {[%clk 0:00:07.8]} 36. Kf1
{[%clk 0:00:05.6]} 36... Rd8 {[%clk 0:00:05.7]} 37. R1e2 {[%clk 0:00:04.9]}
37... Rd1+ {[%clk 0:00:04.8]} 38. Kf2 {[%clk 0:00:05.2]} 38... Bd4+ {[%clk
0:00:04.2]} 39. R6e3 {[%clk 0:00:04.7]} 39... Bxe3+ {[%clk 0:00:04.2]} 40. Rxe3
{[%clk 0:00:05.6]} 40... Qf6 {[%clk 0:00:03.3]} 41. Be2 {[%clk 0:00:06.5]} 41...
Qb2 {[%clk 0:00:02.5]} 42. Kf3 {[%clk 0:00:05.7]} 42... Rh1 {[%clk 0:00:01]} 43.
Re8+ {[%clk 0:00:06.5]} 1-0

[Event "Early-Titled-Tuesday-Blitz-August-29-2023"]
[Site "Chess.com"]
[Date "2023.08.29"]
[Round "2"]
[White "campochess"]
[Black "viktorgen2021"]
[Result "1-0"]
[WhiteElo "2193"]
[BlackElo "2449"]
[TimeControl "180+1"]
[EndTime "8:18:23 PDT"]
[Termination "campochess won on time"]

1. e4 {[%clk 0:02:59.8]} 1... c6 {[%clk 0:02:57.9]} 2. Nc3 {[%clk 0:02:56.7]}
2... d5 {[%clk 0:02:58.4]} 3. Nf3 {[%clk 0:02:56.4]} 3... dxe4 {[%clk
0:02:58.5]} 4. Nxe4 {[%clk 0:02:56.1]} 4... Nf6 {[%clk 0:02:59.4]} 5. Nxf6+
{[%clk 0:02:56.1]} 5... gxf6 {[%clk 0:02:59.4]} 6. g3 {[%clk 0:02:56.1]} 6...
Bg4 {[%clk 0:02:59.3]} 7. Bg2 {[%clk 0:02:50.4]} 7... e5 {[%clk 0:02:59]} 8. d3
{[%clk 0:02:48.8]} 8... Nd7 {[%clk 0:02:57.2]} 9. Be3 {[%clk 0:02:29.5]} 9...
Bc5 {[%clk 0:02:55.3]} 10. Qd2 {[%clk 0:02:27.3]} 10... Qb6 {[%clk 0:02:51.8]}
11. O-O {[%clk 0:02:20.9]} 11... O-O-O {[%clk 0:02:45.3]} 12. a4 {[%clk
0:02:07.3]} 12... Bxe3 {[%clk 0:02:36.3]} 13. fxe3 {[%clk 0:02:06.3]} 13... Qc5
{[%clk 0:02:14.3]} 14. b4 {[%clk 0:02:03.4]} 14... Qd6 {[%clk 0:02:10.7]} 15. a5
{[%clk 0:02:00.9]} 15... a6 {[%clk 0:02:08]} 16. Qc3 {[%clk 0:01:55.8]} 16...
Rhg8 {[%clk 0:01:55.9]} 17. Nd2 {[%clk 0:01:46]} 17... f5 {[%clk 0:01:50.3]} 18.
Nc4 {[%clk 0:01:45.3]} 18... Qc7 {[%clk 0:01:40.8]} 19. h3 {[%clk 0:01:41.3]}
19... Be2 {[%clk 0:01:38.3]} 20. Rf2 {[%clk 0:01:39]} 20... Bh5 {[%clk
0:01:35.2]} 21. Rxf5 {[%clk 0:01:38.8]} 21... Rxg3 {[%clk 0:01:35.2]} 22. Rxh5
{[%clk 0:01:20.1]} 22... Rdg8 {[%clk 0:01:34.2]} 23. Qd2 {[%clk 0:01:20.2]}
23... e4 {[%clk 0:00:49.9]} 24. d4 {[%clk 0:01:15]} 24... Nf6 {[%clk 0:00:20]}
25. Rf5 {[%clk 0:01:11]} 25... Rxh3 {[%clk 0:00:15.4]} 26. Kf1 {[%clk
0:01:03.6]} 26... Qh2 {[%clk 0:00:03.3]} 27. Rf2 {[%clk 0:01:03.2]} 27... Rhg3
{[%clk 0:00:03.4]} 28. Bxe4 {[%clk 0:00:50.6]} 28... Qh3+ {[%clk 0:00:02.7]} 29.
Bg2 {[%clk 0:00:49.3]} 29... Qh4 {[%clk 0:00:02.3]} 30. Ne5 {[%clk 0:00:43.9]}
30... Nd5 {[%clk 0:00:01.3]} 31. Re1 {[%clk 0:00:39.6]} 31... Rxg2 {[%clk
0:00:01.2]} 32. Rxg2 {[%clk 0:00:38.7]} 32... Qh1+ {[%clk 0:00:01.2]} 33. Ke2
{[%clk 0:00:37.3]} 33... Rxg2+ {[%clk 0:00:01.5]} 34. Kf3 {[%clk 0:00:30.1]}
34... Rxd2+ {[%clk 0:00:02.4]} 35. Rxh1 {[%clk 0:00:27]} 35... Rxc2 {[%clk
0:00:02.9]} 36. Rxh7 {[%clk 0:00:26.5]} 36... Nxb4 {[%clk 0:00:03.5]} 37. Rxf7
{[%clk 0:00:26]} 37... Rc1 {[%clk 0:00:04.1]} 38. e4 {[%clk 0:00:22.9]} 38...
Rf1+ {[%clk 0:00:04.1]} 39. Ke2 {[%clk 0:00:21.3]} 39... Rxf7 {[%clk 0:00:05]}
40. Nxf7 {[%clk 0:00:21.4]} 40... Nc2 {[%clk 0:00:03.3]} 41. Kd3 {[%clk
0:00:20]} 41... Na3 {[%clk 0:00:03.3]} 42. Kc3 {[%clk 0:00:18.1]} 42... Kd7
{[%clk 0:00:04.2]} 43. Ng5 {[%clk 0:00:16.1]} 1-0

[Event "Early-Titled-Tuesday-Blitz-August-29-2023"]
[Site "Chess.com"]
[Date "2023.08.29"]
[Round "2"]
[White "tylityli"]
[Black "arenal72"]
[Result "0-1"]
[WhiteElo "2345"]
[BlackElo "2531"]
[TimeControl "180+1"]
[EndTime "8:18:25 PDT"]
[Termination "arenal72 won on time"]

1. d4 {[%clk 0:02:44.5]} 1... d6 {[%clk 0:02:57.4]} 2. c4 {[%clk 0:02:44.4]}
2... e5 {[%clk 0:02:56.9]} 3. Nf3 {[%clk 0:02:38.8]} 3... e4 {[%clk 0:02:55.9]}
4. Nfd2 {[%clk 0:02:38.3]} 4... f5 {[%clk 0:02:55.6]} 5. e3 {[%clk 0:02:35.3]}
5... Nf6 {[%clk 0:02:49]} 6. Nc3 {[%clk 0:02:33]} 6... g6 {[%clk 0:02:46.8]} 7.
b3 {[%clk 0:02:32.2]} 7... Bg7 {[%clk 0:02:44.4]} 8. Bb2 {[%clk 0:02:27.3]} 8...
O-O {[%clk 0:02:39.1]} 9. Be2 {[%clk 0:02:15.6]} 9... c5 {[%clk 0:02:38.5]} 10.
dxc5 {[%clk 0:02:04.1]} 10... dxc5 {[%clk 0:02:32.1]} 11. Qc2 {[%clk 0:02:05]}
11... Nc6 {[%clk 0:02:28.2]} 12. a3 {[%clk 0:02:04]} 12... Be6 {[%clk
0:02:21.4]} 13. O-O {[%clk 0:01:58.6]} 13... a6 {[%clk 0:02:20]} 14. Rad1 {[%clk
0:01:55.3]} 14... Qc7 {[%clk 0:02:18.4]} 15. Na4 {[%clk 0:01:49.6]} 15... b6
{[%clk 0:02:16.8]} 16. Rfe1 {[%clk 0:01:46.2]} 16... Rad8 {[%clk 0:02:00.3]} 17.
Nf1 {[%clk 0:01:45.5]} 17... h5 {[%clk 0:01:57.3]} 18. h3 {[%clk 0:01:40.2]}
18... h4 {[%clk 0:01:53.1]} 19. Rxd8 {[%clk 0:01:37.1]} 19... Rxd8 {[%clk
0:01:52.5]} 20. Rd1 {[%clk 0:01:37.4]} 20... Kf7 {[%clk 0:01:44.1]} 21. Rxd8
{[%clk 0:01:35.9]} 21... Qxd8 {[%clk 0:01:44.6]} 22. Qd1 {[%clk 0:01:36.1]}
22... Qc7 {[%clk 0:01:43]} 23. Nd2 {[%clk 0:01:13.6]} 23... g5 {[%clk
0:01:21.8]} 24. Bh5+ {[%clk 0:01:06.8]} 24... Ke7 {[%clk 0:01:17.9]} 25. Be2
{[%clk 0:00:59.9]} 25... Bd7 {[%clk 0:00:58]} 26. Nb1 {[%clk 0:00:46.9]} 26...
Nd8 {[%clk 0:00:51]} 27. Nac3 {[%clk 0:00:36.8]} 27... Be6 {[%clk 0:00:48.9]}
28. Nd5+ {[%clk 0:00:30.9]} 28... Bxd5 {[%clk 0:00:48.7]} 29. cxd5 {[%clk
0:00:30.3]} 29... Nb7 {[%clk 0:00:47.9]} 30. Bxa6 {[%clk 0:00:25.7]} 30... Nd6
{[%clk 0:00:47.1]} 31. a4 {[%clk 0:00:24.3]} 31... g4 {[%clk 0:00:45.4]} 32. Be5
{[%clk 0:00:22]} 32... gxh3 {[%clk 0:00:44.3]} 33. gxh3 {[%clk 0:00:21.4]} 33...
Qd8 {[%clk 0:00:37.8]} 34. Kh1 {[%clk 0:00:17.3]} 34... Nf7 {[%clk 0:00:33.5]}
35. Bb2 {[%clk 0:00:11.5]} 35... Ng5 {[%clk 0:00:28.4]} 36. Bc4 {[%clk
0:00:07.7]} 36... Nf3 {[%clk 0:00:23]} 37. Nd2 {[%clk 0:00:05.3]} 37... Nxd2
{[%clk 0:00:18.3]} 38. Qxd2 {[%clk 0:00:05.2]} 38... Qd6 {[%clk 0:00:15.6]} 39.
Qc3 {[%clk 0:00:04.7]} 39... Nh5 {[%clk 0:00:12.6]} 40. Qc2 {[%clk 0:00:03]}
40... Be5 {[%clk 0:00:10.1]} 41. Bxe5 {[%clk 0:00:02.1]} 41... Qxe5 {[%clk
0:00:10.3]} 42. Qd2 {[%clk 0:00:02.5]} 42... f4 {[%clk 0:00:05.8]} 0-1

[Event "Early-Titled-Tuesday-Blitz-August-29-2023"]
[Site "Chess.com"]
[Date "2023.08.29"]
[Round "2"]
[White "lefonghua"]
[Black "DanielNaroditsky"]
[Result "0-1"]
[WhiteElo "2666"]
[BlackElo "3155"]
[TimeControl "180+1"]
[EndTime "8:18:26 PDT"]
[Termination "DanielNaroditsky won by resignation"]

1. d4 {[%clk 0:03:00.9]} 1... Nf6 {[%clk 0:02:57.4]} 2. c4 {[%clk 0:03:01]} 2...
g6 {[%clk 0:02:57.5]} 3. Nc3 {[%clk 0:03:01.4]} 3... Bg7 {[%clk 0:02:56.9]} 4.
e4 {[%clk 0:03:01.9]} 4... d6 {[%clk 0:02:57.6]} 5. f4 {[%clk 0:03:01.8]} 5...
Bg4 {[%clk 0:02:54.8]} 6. Nf3 {[%clk 0:03:01.1]} 6... Bxf3 {[%clk 0:02:55.1]} 7.
Qxf3 {[%clk 0:03:00.8]} 7... Nc6 {[%clk 0:02:55.4]} 8. Be3 {[%clk 0:02:59]} 8...
e5 {[%clk 0:02:54.5]} 9. fxe5 {[%clk 0:02:50.6]} 9... dxe5 {[%clk 0:02:55.4]}
10. d5 {[%clk 0:02:49.7]} 10... Nd4 {[%clk 0:02:55.7]} 11. Qd1 {[%clk
0:02:44.4]} 11... O-O {[%clk 0:02:48.5]} 12. Be2 {[%clk 0:02:40.1]} 12... c5
{[%clk 0:02:43.8]} 13. dxc6 {[%clk 0:02:27.7]} 13... bxc6 {[%clk 0:02:40.6]} 14.
O-O {[%clk 0:02:26.9]} 14... Nd7 {[%clk 0:02:33.4]} 15. b4 {[%clk 0:02:02.9]}
15... Re8 {[%clk 0:02:14.4]} 16. c5 {[%clk 0:01:51.1]} 16... Nf8 {[%clk
0:02:10.4]} 17. Bc4 {[%clk 0:01:48.9]} 17... Nfe6 {[%clk 0:02:11.1]} 18. Ne2
{[%clk 0:01:33.7]} 18... a5 {[%clk 0:02:06.9]} 19. Nxd4 {[%clk 0:01:06.5]} 19...
exd4 {[%clk 0:02:05.2]} 20. Bd2 {[%clk 0:01:07]} 20... d3 {[%clk 0:01:56.6]} 21.
Rc1 {[%clk 0:01:05.2]} 21... axb4 {[%clk 0:01:44.9]} 22. Bxb4 {[%clk 0:01:03.2]}
22... Qd4+ {[%clk 0:01:44.5]} 23. Kh1 {[%clk 0:01:02.4]} 23... Rad8 {[%clk
0:01:45.1]} 24. Qf3 {[%clk 0:00:48.8]} 24... Rd7 {[%clk 0:01:38.4]} 25. Bc3
{[%clk 0:00:44.5]} 25... Qxc4 {[%clk 0:00:59.4]} 26. Bxg7 {[%clk 0:00:43.7]}
26... Qxc1 {[%clk 0:00:59.7]} 27. Rxc1 {[%clk 0:00:40.7]} 27... Kxg7 {[%clk
0:01:00.3]} 28. e5 {[%clk 0:00:32.6]} 28... Rd5 {[%clk 0:00:54.2]} 29. Qf6+
{[%clk 0:00:27.9]} 29... Kg8 {[%clk 0:00:53.6]} 30. Rf1 {[%clk 0:00:28.5]} 30...
Rd7 {[%clk 0:00:51.1]} 31. h4 {[%clk 0:00:27.9]} 31... d2 {[%clk 0:00:47.4]} 32.
Rd1 {[%clk 0:00:28.1]} 32... h5 {[%clk 0:00:41.8]} 33. g4 {[%clk 0:00:19.9]}
33... hxg4 {[%clk 0:00:36.7]} 34. h5 {[%clk 0:00:20.2]} 34... gxh5 {[%clk
0:00:36.6]} 35. Qh6 {[%clk 0:00:20.2]} 35... Rd4 {[%clk 0:00:31]} 36. Rxd2
{[%clk 0:00:17.8]} 36... Rxd2 {[%clk 0:00:29.4]} 37. Qxd2 {[%clk 0:00:18.7]}
37... Kg7 {[%clk 0:00:29.6]} 38. Qd6 {[%clk 0:00:15.1]} 38... h4 {[%clk
0:00:27.8]} 39. Qxc6 {[%clk 0:00:15.4]} 39... Rd8 {[%clk 0:00:28.1]} 40. Qe4
{[%clk 0:00:14.9]} 40... Rd4 {[%clk 0:00:26.3]} 41. Qf5 {[%clk 0:00:12.9]} 41...
Rf4 {[%clk 0:00:20.6]} 42. Qh5 {[%clk 0:00:10.9]} 42... Rf1+ {[%clk 0:00:20.6]}
43. Kh2 {[%clk 0:00:10.4]} 43... g3+ {[%clk 0:00:21.1]} 44. Kg2 {[%clk
0:00:09.4]} 44... Rf2+ {[%clk 0:00:11.3]} 45. Kg1 {[%clk 0:00:09.5]} 45... Rf4
{[%clk 0:00:08.8]} 46. c6 {[%clk 0:00:08.8]} 46... Rc4 {[%clk 0:00:09.5]} 47. c7
{[%clk 0:00:06.9]} 47... Rc1+ {[%clk 0:00:09.6]} 48. Kg2 {[%clk 0:00:06.5]}
48... Nf4+ {[%clk 0:00:10.1]} 49. Kf3 {[%clk 0:00:06.2]} 49... Nxh5 {[%clk
0:00:11]} 0-1

[Event "Early-Titled-Tuesday-Blitz-August-29-2023"]
[Site "Chess.com"]
[Date "2023.08.29"]
[Round "2"]
[White "Nbk90"]
[Black "mistrzemi"]
[Result "0-1"]
[WhiteElo "2116"]
[BlackElo "2443"]
[TimeControl "180+1"]
[EndTime "8:18:29 PDT"]
[Termination "mistrzemi won on time"]

1. Nf3 {[%clk 0:02:59.6]} 1... d5 {[%clk 0:02:58.8]} 2. g3 {[%clk 0:02:59.5]}
2... Nf6 {[%clk 0:02:53.9]} 3. Bg2 {[%clk 0:02:59.8]} 3... e6 {[%clk 0:02:52.7]}
4. c4 {[%clk 0:03:00.2]} 4... c6 {[%clk 0:02:48.3]} 5. O-O {[%clk 0:02:54.5]}
5... Nbd7 {[%clk 0:02:47.7]} 6. d4 {[%clk 0:02:52.8]} 6... Ne4 {[%clk 0:02:47]}
7. Qc2 {[%clk 0:02:47.3]} 7... f5 {[%clk 0:02:43.9]} 8. Nbd2 {[%clk 0:02:42.5]}
8... Be7 {[%clk 0:02:25]} 9. b3 {[%clk 0:02:33.2]} 9... O-O {[%clk 0:02:18.2]}
10. e3 {[%clk 0:02:31.2]} 10... Ndf6 {[%clk 0:02:18]} 11. Bb2 {[%clk 0:02:28.6]}
11... Qd7 {[%clk 0:02:07.6]} 12. Ne5 {[%clk 0:02:28.1]} 12... Qc7 {[%clk
0:02:00.6]} 13. f3 {[%clk 0:02:20.9]} 13... Nd6 {[%clk 0:01:55.8]} 14. e4 {[%clk
0:01:56.6]} 14... b6 {[%clk 0:01:28.7]} 15. cxd5 {[%clk 0:01:44.2]} 15... exd5
{[%clk 0:01:26.5]} 16. Nxc6 {[%clk 0:01:38.8]} 16... fxe4 {[%clk 0:01:18.9]} 17.
fxe4 {[%clk 0:01:35.8]} 17... Ndxe4 {[%clk 0:01:01]} 18. Nxe4 {[%clk 0:01:16.9]}
18... dxe4 {[%clk 0:00:58.8]} 19. Qc4+ {[%clk 0:00:30.1]} 19... Kh8 {[%clk
0:00:49]} 20. Nxe7 {[%clk 0:00:29.1]} 20... Qxe7 {[%clk 0:00:48.2]} 21. a4
{[%clk 0:00:26.3]} 21... a5 {[%clk 0:00:33.1]} 22. Ba3 {[%clk 0:00:25]} 22...
Qd8 {[%clk 0:00:24.4]} 23. Bxf8 {[%clk 0:00:25.3]} 23... Ba6 {[%clk 0:00:24.1]}
24. Qf7 {[%clk 0:00:16.4]} 24... Qxf8 {[%clk 0:00:16.9]} 25. Qxf8+ {[%clk
0:00:17.2]} 25... Rxf8 {[%clk 0:00:16.7]} 26. Rf4 {[%clk 0:00:15.5]} 26... Bd3
{[%clk 0:00:15.6]} 27. d5 {[%clk 0:00:15.3]} 27... Rd8 {[%clk 0:00:14.3]} 28.
Rd1 {[%clk 0:00:11.5]} 28... Rxd5 {[%clk 0:00:11.7]} 29. Bxe4 {[%clk 0:00:08.2]}
29... Bxe4 {[%clk 0:00:07.4]} 30. Re1 {[%clk 0:00:02.9]} 30... Rd4 {[%clk
0:00:04.8]} 31. g4 {[%clk 0:00:02.1]} 31... Kg8 {[%clk 0:00:02.2]} 32. g5 {[%clk
0:00:02.5]} 32... Nd5 {[%clk 0:00:02.1]} 33. Rfxe4 {[%clk 0:00:01.8]} 33... Rxe4
{[%clk 0:00:03]} 34. Rxe4 {[%clk 0:00:02.4]} 34... Nc3 {[%clk 0:00:03.6]} 35.
Re7 {[%clk 0:00:02.1]} 35... Kf8 {[%clk 0:00:03.2]} 36. Rb7 {[%clk 0:00:02.6]}
36... Ne4 {[%clk 0:00:03.8]} 37. Rxb6 {[%clk 0:00:02.3]} 37... Nd2 {[%clk
0:00:03.8]} 0-1